bitfinex-derivatives/quotes_SOLF0:USTF0_20260115
["timestamp","ask_amount","ask_price","bid_price","bid_amount"]
[1768502620598,4.54693826,141.9,141.83,31.2336267]
[1768502620799,5.23755313,141.89,141.83,31.2336267]
[1768502621004,4.54693826,141.9,141.83,31.2336267]
[1768502621210,5.23754746,141.89,141.83,31.2336267]
[1768502621408,4.54693826,141.9,141.83,31.2336267]
[1768502621705,5.23757196,141.89,141.83,31.2336267]
[1768502621902,6.345,141.88,141.83,31.2336267]
[1768502623906,4.54693826,141.9,141.83,31.2336267]
[1768502623907,10.89133826,141.9,141.83,31.2336267]
[1768502624102,5.23745681,141.89,141.83,31.2336267]
[1768502624304,4.54693826,141.9,141.83,31.2336267]
[1768502624504,2.32,141.9,141.83,31.2336267]
[1768502625599,4.54693826,141.92,141.83,31.2336267]
[1768502625800,6.3442,141.9,141.83,37.5806267]
[1768502626001,6.3442,141.9,141.84,28.9136267]
[1768502628003,6.3435,141.92,141.84,31.14056496]
[1768502628205,2.32,141.93,141.86,31.19406258]
[1768502628409,2.22693826,141.95,141.88,28.9136267]
[1768502628410,4.54693826,141.95,141.88,28.9136267]
[1768502628610,5.24235988,141.94,141.88,28.9136267]
[1768502628806,17.97493255,141.96,141.88,28.9136267]
[1768502629103,17.97493255,141.96,141.88,31.14056496]
[1768502629308,17.97493255,141.96,141.9,28.96627942]
[1768502629508,17.97493255,141.96,141.9,31.28627942]
[1768502630708,24.31633255,141.96,141.9,31.28627942]
[1768502631808,17.97493255,141.96,141.9,31.28627942]
[1768502632208,17.97493255,141.96,141.9,33.51321768]
[1768502632511,17.97493255,141.96,141.9,31.28627942]
[1768502632712,17.97493255,141.96,141.92,29.02852035]
[1768502633813,2.3,141.99,141.94,29.02852035]
[1768502634005,98.5826,142.05,141.94,29.02852035]
[1768502634207,7.53127259,142.04,141.94,29.02852035]
[1768502634401,11.56987259,142.03,141.96,29.02852035]
[1768502634613,5.23127259,142.02,141.96,31.32852035]
[1768502634819,4.52693826,142.04,141.98,0.04591861]
[1768502635013,2.22693826,142.02,141.98,0.04591861]
[1768502635214,5.227952,142.01,141.98,0.04591861]
[1768502635416,2.22693826,142.01,141.98,0.04591861]
[1768502635719,2.22693826,141.99,141.94,2.3]
[1768502636016,8.56683826,142.0,141.94,2.3]
[1768502636416,6.3399,142.0,141.94,31.32852035]
[1768502636602,4.52693826,142.01,141.94,31.32852035]
[1768502637815,10.86623826,142.01,141.94,31.32852035]
[1768502638316,2.3,142.01,141.94,31.32852035]
[1768502638924,2.22693826,142.0,141.94,31.32852035]
[1768502639615,6.3397,142.0,141.94,31.32852035]
[1768502639817,6.3397,142.0,141.94,29.02852035]
[1768502640320,10.86623826,142.01,141.94,29.02852035]
[1768502641121,8.6393,142.01,141.94,29.02852035]
[1768502641317,2.22693826,142.0,141.91,35.37182035]
[1768502641514,2.22693826,142.0,141.93,29.02852035]
[1768502641814,2.3,142.01,141.93,29.02852035]
[1768502642017,2.3,142.01,141.93,31.25545861]
[1768502642419,6.3381,142.04,141.93,31.25545861]
[1768502642716,2.3,142.04,141.96,29.02852035]
[1768502642918,2.3,142.04,141.97,31.32852035]
[1768502643121,2.22693826,142.05,141.98,29.02852035]
[1768502643929,2.22693826,142.05,142.0,0.04480815]
[1768502644417,4.52693826,142.05,142.0,0.04480815]
[1768502644923,2.3,142.05,142.0,0.04480815]
[1768502645317,98.5553,142.09,142.0,29.0733285]
[1768502645517,2.3,142.08,142.0,29.0733285]
[1768502645918,2.3,142.08,142.0,29.02852035]
[1768502646221,2.3,142.08,142.03,0.04773187]
[1768502646616,0.05258696,142.05,141.97,31.30852035]
[1768502646822,2.28,142.04,141.97,31.30852035]
[1768502647126,2.28,142.04,141.97,29.02852035]
[1768502647315,2.28,142.04,141.97,31.30852035]
[1768502647822,2.28,142.04,141.97,37.64932035]
[1768502648119,0.04998892,142.02,141.98,29.02852035]
[1768502648427,6.3374,142.05,141.98,35.36892035]
[1768502648814,6.3374,142.05,141.99,29.07774747]
[1768502651527,8.6174,142.05,141.99,29.07774747]
[1768502655420,6.338,142.04,141.99,29.07774747]
[1768502658932,3.47347278,142.08,141.99,29.07774747]
[1768502659131,3.47347278,142.1,142.01,29.02852035]
[1768502659334,2.28,142.09,142.01,29.02852035]
[1768502660826,8.6157,142.09,142.03,28.7294788]
[1768502663038,2.28,142.09,142.03,30.9894788]
[1768502663242,2.28,142.09,142.04,28.7294788]
[1768502664032,2.26,142.11,142.04,28.7294788]
[1768502664949,6.3352,142.1,142.04,28.7294788]
[1768502665845,98.5196,142.14,142.04,28.7294788]
[1768502666037,3.47347278,142.12,142.04,28.7294788]
[1768502666238,3.47347278,142.12,142.05,2.26]
[1768502666737,3.47347278,142.12,142.04,30.9894788]
[1768502666943,6.3352,142.1,142.04,30.9894788]
[1768502667842,9.80807278,142.12,142.04,30.9894788]
[1768502668047,9.80807278,142.12,142.06,29.48318939]
[1768502668048,6.3346,142.12,142.06,29.48318939]
[1768502668941,6.3346,142.12,142.08,0.05068494]
[1768502669340,5.73347278,142.14,142.08,0.05068494]
[1768502669642,5.21529089,142.13,142.08,0.05068494]
[1768502669845,5.21529089,142.12,142.08,0.05068494]
[1768502670043,5.73347278,142.14,142.08,0.05068494]
[1768502670244,5.21491814,142.13,142.08,0.05068494]
[1768502670447,5.73347278,142.14,142.08,0.05068494]
[1768502670647,11.55247496,142.13,142.08,0.05068494]
[1768502670848,6.3342,142.13,142.08,0.05068494]
[1768502672050,2.26,142.14,142.08,29.53387433]
[1768502672751,2.26,142.15,142.08,35.86987433]
[1768502672947,3.47347278,142.16,142.09,2.26]
[1768502673351,5.22470173,142.15,142.09,31.74318939]
[1768502673550,2.26,142.17,142.09,31.74318939]
[1768502673743,5.22460951,142.16,142.09,31.74318939]
[1768502673955,5.22460951,142.15,142.09,31.74318939]
[1768502674143,2.26,142.17,142.09,31.74318939]
[1768502674353,6.3335,142.14,142.09,29.48318939]
[1768502674544,6.3335,142.14,142.09,31.74318939]
[1768502674743,6.3335,142.14,142.09,29.48318939]
[1768502675146,6.3338,142.13,142.09,29.48318939]
[1768502675843,6.3343,142.12,142.06,29.48318939]
[1768502676038,6.3343,142.12,142.07,2.26]
[1768502677252,5.73347278,142.14,142.06,29.48318939]
[1768502677453,3.47347278,142.12,142.04,31.72318939]
[1768502677652,5.22188077,142.11,142.04,31.72318939]
[1768502677958,6.3356,142.09,142.04,31.72318939]
[1768502679451,6.336,142.08,142.04,31.72318939]
[1768502680764,6.336,142.08,142.04,29.48318939]
[1768502681256,6.3366,142.07,142.04,29.48318939]
[1768502682255,6.3366,142.07,142.02,2.24]
[1768502682656,6.3366,142.07,142.02,31.72318939]
[1768502683851,6.3366,142.07,142.02,29.48318939]
[1768502684248,6.3366,142.07,142.02,31.72318939]
[1768502685863,102.00447278,142.13,142.02,31.72318939]
[1768502686055,5.22914377,142.12,142.02,31.72318939]
[1768502686362,5.71347278,142.14,142.02,35.19666217]
[1768502686557,5.23105853,142.13,142.02,35.19666217]
[1768502686860,5.23105853,142.12,142.06,29.52838661]
[1768502687058,5.71347278,142.14,142.06,31.76838661]
[1768502687257,5.2325608,142.13,142.06,31.76838661]
[1768502687458,5.2325608,142.12,142.06,31.76838661]
[1768502687660,5.71347278,142.14,142.06,31.76838661]
[1768502687963,6.3348,142.11,142.06,31.76838661]
[1768502688167,104.23577278,142.14,142.06,29.52838661]
[1768502688359,5.2336648,142.13,142.06,31.76838661]
[1768502688658,5.2336648,142.12,142.06,31.76838661]
[1768502688852,6.3356,142.09,142.06,31.76838661]
[1768502689164,6.3356,142.09,142.06,7.96278661]
[1768502690053,124.06554159,142.17,142.06,7.96278661]
[1768502690257,5.23472607,142.14,142.06,8.01315819]
[1768502690456,5.23472607,142.13,142.06,8.01315819]
[1768502690658,5.23472607,142.12,142.06,7.96278661]
[1768502690856,104.22867278,142.15,142.06,7.96278661]
[1768502691061,5.23505812,142.14,142.06,7.96278661]
[1768502691362,5.23505812,142.13,142.06,7.96278661]
[1768502691564,104.22867278,142.15,142.09,0.05008165]
[1768502691762,6.3343,142.12,142.09,0.05008165]
[1768502695259,6.3337,142.14,142.09,0.05008165]
[1768502695459,2.24,142.15,142.09,0.05008165]
[1768502695667,5.22819905,142.14,142.09,0.05008165]
[1768502695869,2.24,142.15,142.09,0.05008165]
[1768502696065,5.22736499,142.14,142.09,0.05008165]
[1768502696269,2.24,142.15,142.09,0.05008165]
[1768502696474,6.3342,142.13,142.09,0.05008165]
[1768502696665,100.7551,142.15,142.09,0.05008165]
[1768502696869,6.3342,142.12,142.09,0.05008165]
[1768502700275,6.3338,142.13,142.09,0.05008165]
[1768502702771,6.3345,142.12,142.09,0.05008165]
[1768502703568,2.24,142.15,142.09,0.05008165]
[1768502703771,5.23522015,142.14,142.09,0.05008165]
[1768502703981,5.23522015,142.13,142.09,0.05008165]
[1768502704180,6.3333,142.15,142.09,30.73406912]
[1768502704375,5.23668418,142.14,142.1,2.22]
[1768502704581,5.23668418,142.13,142.1,2.22]
[1768502704783,2.22,142.15,142.07,30.68398747]
[1768502704972,5.2364416,142.14,142.07,32.90398747]
[1768502705172,5.2364416,142.13,142.1,0.05388774]
[1768502705374,2.22,142.15,142.1,30.73787521]
[1768502705575,11.57072391,142.14,142.1,30.73787521]
[1768502705776,6.3334,142.14,142.1,0.05388774]
[1768502705976,2.22,142.15,142.1,0.05388774]
[1768502706284,6.3339,142.13,142.1,0.05388774]
[1768502707976,2.22006779,142.16,142.1,30.73787521]
[1768502708172,5.23946373,142.15,142.1,30.73787521]
[1768502708377,5.23946373,142.14,142.1,30.73787521]
[1768502708577,2.22,142.17,142.11,2.2]
[1768502708779,5.24195972,142.16,142.11,2.2]
[1768502708986,5.24195972,142.15,142.11,2.2]
[1768502709188,2.22,142.17,142.11,2.2]
[1768502709386,5.24192589,142.16,142.11,2.2]
[1768502709586,5.24192589,142.15,142.11,2.2]
[1768502709889,11.2929069,142.15,142.1,2.2]
[1768502710089,11.2929069,142.15,142.05,8.55706779]
[1768502710090,5.24235657,142.14,142.09,2.2]
[1768502710282,11.2929069,142.15,142.09,2.2]
[1768502710490,6.3339,142.13,142.09,2.2]
[1768502711082,0.05138787,142.12,142.09,2.2]
[1768502713992,0.05138787,142.12,142.08,30.68398747]
[1768502714189,0.05138787,142.12,142.08,32.88398747]
[1768502715489,0.05138787,142.12,142.09,2.2]
[1768502715891,11.2929069,142.15,142.09,2.2]
[1768502716091,5.24255911,142.14,142.09,2.2]
[1768502716291,6.3334,142.14,142.09,2.2]
[1768502716498,6.3334,142.14,142.09,32.88398747]
[1768502716794,11.2929069,142.15,142.03,30.68398747]
[1768502716996,5.24198935,142.14,142.06,30.68398747]
[1768502717198,11.2929069,142.15,142.07,32.88398747]
[1768502717394,5.24185988,142.14,142.07,32.88398747]
[1768502717597,11.92229571,142.17,142.07,35.10405526]
[1768502717796,5.24198855,142.16,142.1,0.04863877]
[1768502717995,5.24198855,142.15,142.1,0.04863877]
[1768502718300,6.3329,142.15,142.1,0.04863877]
[1768502718598,5.24119599,142.14,142.1,0.04863877]
[1768502718789,6.3329,142.15,142.1,0.04863877]
[1768502719100,5.24000186,142.14,142.1,0.04863877]
[1768502719395,6.3329,142.15,142.1,0.04863877]
[1768502719594,5.24040148,142.14,142.1,0.04863877]
[1768502719796,5.24014233,142.13,142.1,0.04863877]
[1768502719992,6.3333,142.14,142.1,0.04863877]
[1768502720197,5.24002141,142.13,142.1,0.04863877]
[1768502720398,12.07038224,142.15,142.1,0.04863877]
[1768502720590,5.24026029,142.14,142.1,0.04863877]
[1768502720795,16.18361445,142.15,142.1,0.04863877]
[1768502720996,5.24055224,142.14,142.1,0.04863877]
[1768502721195,16.18361445,142.15,142.1,0.04863877]
[1768502721390,5.24005194,142.14,142.1,0.04863877]
[1768502721597,16.18361445,142.15,142.1,0.04863877]
[1768502721799,5.2400763,142.14,142.1,0.04863877]
[1768502722097,6.3333,142.15,142.1,31.08118378]
[1768502722300,5.23968815,142.14,142.1,31.08118378]
[1768502722496,6.3333,142.15,142.1,31.08118378]
[1768502722702,11.57320573,142.14,142.1,31.08118378]
[1768502722902,6.3334,142.14,142.1,31.08118378]
[1768502724507,12.29125484,142.16,142.1,2.24863877]
[1768502724802,5.2349443,142.15,142.1,0.04863877]
[1768502725000,5.2349443,142.14,142.1,0.04863877]
[1768502725202,5.2349443,142.13,142.1,0.04863877]
[1768502725400,12.29125484,142.16,142.1,0.04863877]
[1768502725703,5.23588505,142.15,142.1,0.04863877]
[1768502725911,5.23588505,142.14,142.1,29.56561594]
[1768502726205,12.29125484,142.16,142.1,29.56561594]
[1768502726407,5.23735274,142.15,142.1,29.56561594]
[1768502726599,5.23735274,142.14,142.1,29.56561594]
[1768502726795,6.3329,142.15,142.1,29.56561594]
[1768502727001,5.23712989,142.14,142.1,29.56561594]
[1768502727212,12.29125484,142.16,142.1,29.56561594]
[1768502727398,5.23787741,142.15,142.1,29.56561594]
[1768502727598,5.23787741,142.14,142.1,29.56561594]
[1768502727799,12.29125484,142.16,142.1,29.56561594]
[1768502728108,5.23761653,142.15,142.1,29.56561594]
[1768502728301,5.23761653,142.14,142.1,29.56561594]
[1768502728606,12.29125484,142.16,142.1,29.56561594]
[1768502728803,5.23621198,142.15,142.1,29.56561594]
[1768502729005,5.23621198,142.14,142.1,29.56561594]
[1768502729202,6.3325,142.16,142.1,29.56561594]
[1768502729601,2.22,142.17,142.12,29.51697717]
[1768502729903,15.88271754,142.19,142.12,29.51697717]
[1768502730101,2.22006779,142.18,142.12,29.51697717]
[1768502730507,2.22006779,142.18,142.14,0.05147519]
[1768502730703,114.45536252,142.18,142.12,29.51697717]
[1768502730901,116.67543031,142.18,142.12,29.51697717]
[1768502731105,0.05075798,142.17,142.12,29.51697717]
[1768502731605,6.3338,142.13,142.05,6.3371]
[1768502731907,100.72616779,142.16,142.07,2.22006779]
[1768502732105,100.72616779,142.16,142.08,2.18]
[1768502732407,0.04463868,142.13,142.08,2.18]
[1768502732608,100.72616779,142.16,142.06,6.3369]
[1768502732808,100.72616779,142.16,142.07,4.40006779]
[1768502733207,6.3348,142.11,142.04,6.3377]
[1768502733407,100.74136779,142.14,142.05,4.40006779]
[1768502733603,98.5266,142.13,142.06,29.51697717]
[1768502733804,98.5266,142.13,142.06,31.69697717]
[1768502734308,128.73524773,142.13,142.06,29.51697717]
[1768502734509,128.73524773,142.13,142.07,2.18]
[1768502735210,6.3356,142.09,142.07,2.18]
[1768502736504,6.3361,142.08,142.06,29.51697717]
[1768502737811,6.3366,142.07,142.02,29.51697717]
[1768502738010,6.3366,142.07,141.99,29.51697717]
[1768502738011,30.20864773,142.07,141.99,29.51697717]
[1768502738213,30.20864773,142.07,141.98,2.22006779]
[1768502738214,6.3379,142.04,142.0,31.69697717]
[1768502738513,2.22006779,142.09,142.0,33.91704496]
[1768502738514,30.20864773,142.09,142.0,33.91704496]
[1768502738706,102.95026779,142.1,142.0,33.91704496]
[1768502738907,6.3364,142.08,142.0,33.91704496]
[1768502739217,6.3364,142.08,142.04,0.0444848]
[1768502741520,0.04798984,142.07,142.04,0.0444848]
[1768502743521,6.3353,142.1,142.04,29.56146197]
[1768502743820,8.4953,142.1,142.04,29.56146197]
[1768502745016,6.3357,142.09,142.04,29.56146197]
[1768502745217,2.16,142.1,142.04,29.56146197]
[1768502745524,4.38006779,142.1,142.04,29.56146197]
[1768502746016,6.3361,142.08,142.04,2.2044848]
[1768502747022,6.3365,142.07,142.04,2.2044848]
[1768502748028,32.36864773,142.1,142.04,31.72146197]
[1768502748323,30.20864773,142.13,142.04,31.72146197]
[1768502748524,5.19494892,142.12,142.04,31.72146197]
[1768502748725,5.19466441,142.11,142.04,31.72146197]
[1768502748923,2.22006779,142.12,142.04,31.67697717]
[1768502749326,2.22006779,142.12,142.06,0.05343947]
[1768502750827,6.3355,142.1,142.06,0.05343947]
[1768502754025,2.22006779,142.1,142.06,0.05343947]
[1768502754222,35.55401592,142.1,142.06,0.05343947]
[1768502754928,6.336,142.08,142.06,0.05343947]
[1768502756231,41.88931592,142.1,142.06,0.05343947]
[1768502756428,35.55401592,142.1,142.06,0.05343947]
[1768502757937,6.3357,142.09,142.06,0.05343947]
[1768502766051,6.3362,142.08,142.06,0.05343947]
[1768502766549,33.33394813,142.07,142.01,31.54452442]
[1768502766853,35.55401592,142.07,142.01,33.68452442]
[1768502767347,33.33394813,142.07,142.01,33.68452442]
[1768502767746,6.3378,142.04,141.99,31.54452442]
[1768502767956,6.3378,142.04,142.0,2.14]
[1768502768454,33.33394813,142.05,142.0,2.14]
[1768502769455,33.33394813,142.05,141.99,31.54452442]
[1768502769844,39.67134813,142.05,141.99,31.54452442]
[1768502770349,35.47394813,142.04,141.97,31.54452442]
[1768502771854,41.81214813,142.04,141.97,31.54452442]
[1768502772856,41.81214813,142.04,141.97,37.88542442]
[1768502773048,39.67214813,142.04,141.97,37.88542442]
[1768502773452,6.3382,142.04,141.97,37.88542442]
[1768502773758,6.3371,142.06,141.99,37.88442442]
[1768502773958,6.3371,142.06,142.0,2.14]
[1768502777661,3.47274443,142.04,141.96,31.54452442]
[1768502777858,33.33394813,142.03,141.97,2.12]
[1768502778154,33.33394813,141.97,141.89,31.54452442]
[1768502778359,35.45394813,141.97,141.89,31.54452442]
[1768502778749,45.26779256,141.97,141.89,31.54452442]
[1768502778956,33.33394813,141.96,141.89,31.54452442]
[1768502779151,33.33394813,142.02,141.9,31.54452442]
[1768502779362,2.12,142.01,141.93,31.54452442]
[1768502779560,2.12,142.01,141.93,37.88692442]
[1768502782153,8.4592,142.01,141.93,37.88692442]
[1768502782359,36.94193418,142.01,141.93,31.54452442]
[1768502782556,40.41467861,142.01,141.93,31.54452442]
[1768502783058,41.16213418,141.99,141.91,2.12]
[1768502783368,2.12,141.98,141.91,2.12]
[1768502783756,41.16293418,141.97,141.91,2.12]
[1768502783962,41.16293418,141.97,141.9,34.91699007]
[1768502786368,34.82193418,141.97,141.9,34.91699007]
[1768502789165,6.3415,141.96,141.87,6.3452]
[1768502789370,34.67959386,141.94,141.86,33.35275171]
[1768502789671,2.12,141.93,141.86,33.35275171]
[1768502790266,2.12,141.93,141.86,39.69845171]
[1768502790471,2.12,141.93,141.86,33.35275171]
[1768502790671,38.15233829,141.97,141.88,33.35275171]
[1768502790672,2.12,141.95,141.88,33.35275171]
[1768502790866,2.12,141.95,141.88,39.69735171]
[1768502791070,2.12,141.95,141.85,2.12]
[1768502791071,40.27233829,141.95,141.85,2.12]
[1768502791266,40.27233829,141.95,141.85,35.47275171]
[1768502792767,41.02199386,141.94,141.86,6.3457]
[1768502793171,41.02199386,141.94,141.86,39.69845171]
[1768502793365,41.02199386,141.94,141.87,6.3452]
[1768502793366,34.67959386,141.94,141.87,6.3452]
[1768502794674,34.67959386,141.94,141.87,39.69795171]
[1768502794870,34.67959386,141.97,141.88,35.45275171]
[1768502795781,41.02059386,141.97,141.89,6.3442]
[1768502801773,34.67959386,141.97,141.9,39.69675171]
[1768502803979,41.02069386,141.97,141.9,39.69675171]
[1768502805675,34.67959386,141.97,141.91,39.69615171]
[1768502806281,34.67959386,141.97,141.91,41.79615171]
[1768502807382,34.67959386,141.99,141.91,35.45275171]
[1768502807582,36.77959386,141.99,141.91,35.45275171]
[1768502808876,36.77959386,141.99,141.93,6.3426]
[1768502809785,36.77959386,141.99,141.91,35.45275171]
[1768502809983,36.77959386,142.01,141.95,39.69445171]
[1768502810285,3.47274443,142.04,141.95,33.35275171]
[1768502810584,36.77959386,142.04,141.95,33.35275171]
[1768502812983,36.77959386,142.04,141.97,42.01490863]
[1768502813190,36.77959386,142.04,141.97,44.09490863]
[1768502813388,36.77959386,142.04,141.98,6.3404]
[1768502813585,34.67959386,142.04,141.98,6.3404]
[1768502813789,34.67959386,142.04,141.97,37.75400863]
[1768502814185,34.67959386,142.04,141.97,44.09450863]
[1768502815085,34.67959386,142.04,141.98,6.3404]
[1768502815686,34.67959386,142.04,141.99,6.3399]
[1768502815991,2.08,142.06,141.98,35.67400863]
[1768502816390,2.08,142.06,142.0,35.67400863]
[1768502816586,2.08,142.06,142.0,37.75400863]
[1768502817790,2.08,142.06,142.02,6.38700417]
[1768502818897,34.34673807,142.1,142.02,35.7225128]
[1768502819197,41.57116131,142.09,142.02,35.7225128]
[1768502819499,36.42673807,142.09,142.02,35.7225128]
[1768502819693,36.42673807,142.09,142.02,6.3383]
[1768502820294,37.8194825,142.07,141.96,35.67400863]
[1768502820493,34.34673807,142.05,141.97,2.08]
[1768502821000,34.34673807,142.05,141.98,2.08]
[1768502822992,34.34673807,142.05,141.98,8.4203]
[1768502824792,34.34673807,142.05,141.98,44.09430863]
[1768502825102,2.08,142.06,142.0,0.04738299]
[1768502825599,36.42673807,142.06,142.0,0.04738299]
[1768502826295,0.04850336,142.04,142.0,0.04738299]
[1768502827197,34.39524143,142.04,142.0,0.04738299]
[1768502830799,40.73324143,142.04,141.96,42.01490863]
[1768502831100,34.34673807,142.01,141.93,37.73400863]
[1768502831304,2.22314083,142.0,141.93,37.73400863]
[1768502831801,2.22314083,142.0,141.94,6.342]
[1768502832003,34.34673807,142.01,141.94,6.342]
[1768502832201,0.04535265,141.98,141.94,6.342]
[1768502834105,0.04535265,141.98,141.95,6.3418]
[1768502834404,0.04535265,141.98,141.93,39.95714946]
[1768502834599,34.34673807,142.01,141.93,39.95714946]
[1768502834904,34.34673807,142.01,141.96,6.3413]
[1768502835309,34.34673807,142.01,141.95,2.06]
[1768502836607,36.5698789,142.0,141.94,2.06]
[1768502836808,38.6298789,142.0,141.94,2.06]
[1768502837902,38.6298789,142.0,141.94,8.4022]
[1768502838102,38.6298789,142.0,141.94,2.06]
[1768502838707,34.34673807,141.99,141.94,2.06]
[1768502839408,36.5698789,141.98,141.91,2.06]
[1768502840006,6.3409,141.97,141.91,2.06]
[1768502840703,42.74763807,141.97,141.91,2.06]
[1768502840907,43.85408515,141.96,141.91,2.06]
[1768502844808,2.06,141.97,141.91,37.21149822]
[1768502845013,37.34954432,141.97,141.91,37.21149822]
[1768502845308,2.22314083,141.96,141.91,2.06]
[1768502845506,37.93286548,141.96,141.91,2.06]
[1768502845702,44.27436548,141.96,141.91,2.06]
[1768502846014,37.93286548,141.96,141.89,35.63075681]
[1768502846210,39.97286548,141.96,141.89,35.63075681]
[1768502846412,42.05172465,141.95,141.89,35.63075681]
[1768502846605,35.70972465,141.95,141.89,35.63075681]
[1768502848813,42.05162465,141.95,141.89,35.63075681]
[1768502850009,6.3427,141.93,141.86,41.97635681]
[1768502850307,6.3427,141.93,141.87,35.63075681]
[1768502850613,6.3427,141.93,141.88,2.04]
[1768502851113,6.3432,141.92,141.88,2.04]
[1768502851508,6.3432,141.92,141.85,41.97665681]
[1768502851710,6.3432,141.92,141.86,2.04]
[1768502852214,6.3437,141.91,141.86,2.04]
[1768502852508,37.74972465,141.93,141.86,37.67075681]
[1768502852712,35.70972465,141.93,141.86,37.67075681]
[1768502852913,42.05282465,141.93,141.86,44.01655681]
[1768502854114,6.3432,141.92,141.86,37.67075681]
[1768502854315,2.04,141.94,141.86,37.67075681]
[1768502854517,2.04,141.94,141.88,35.63075681]
[1768502855717,6.3427,141.93,141.88,35.63075681]
[1768502857219,35.70972465,141.92,141.85,35.63075681]
[1768502857421,35.70972465,141.92,141.86,2.04]
[1768502857620,35.70972465,141.92,141.85,35.63075681]
[1768502857826,35.70972465,141.92,141.86,2.04]
[1768502858016,6.3441,141.9,141.85,35.63075681]
[1768502858225,2.04,141.91,141.85,35.63075681]
[1768502858718,8.3836,141.91,141.85,35.63075681]
[1768502861019,35.70972465,141.9,141.83,35.63075681]
[1768502861223,35.70972465,141.9,141.84,2.04]
[1768502861426,37.93286548,141.89,141.84,2.04]
[1768502862121,35.70972465,141.91,141.82,39.89389764]
[1768502862420,2.04,141.92,141.85,35.63075681]
[1768502862625,6.3436,141.91,141.85,44.01695681]
[1768502862823,35.70972465,141.97,141.88,37.85389764]
[1768502863121,35.70972465,141.97,141.88,39.89389764]
[1768502863122,35.70972465,141.96,141.88,39.89389764]
[1768502863322,6.3424,141.94,141.88,37.67075681]
[1768502866824,42.05252465,141.93,141.87,2.02]
[1768502867326,6.3432,141.92,141.86,35.63075681]
[1768502867525,6.3432,141.92,141.87,2.02]
[1768502868728,35.70972465,141.96,141.87,39.87389764]
[1768502868914,37.72972465,141.96,141.89,37.85389764]
[1768502869423,35.70972465,141.95,141.87,2.02]
[1768502869721,35.70972465,141.95,141.87,39.87389764]
[1768502870930,6.3425,141.94,141.87,39.87389764]
[1768502871222,39.32954801,141.94,141.88,2.02]
[1768502871622,39.32954801,141.94,141.87,35.63075681]
[1768502872633,37.10640718,141.94,141.87,35.63075681]
[1768502872929,6.3428,141.93,141.87,37.85389764]
[1768502874844,37.10640718,141.94,141.87,44.19919764]
[1768502875330,37.10640718,141.94,141.87,37.85389764]
[1768502875530,2.02,141.96,141.87,37.85389764]
[1768502875531,37.10640718,141.96,141.88,36.35606377]
[1768502875731,39.12640718,141.96,141.89,38.37606377]
[1768502876133,39.12640718,141.96,141.89,40.5992046]
[1768502876333,39.12640718,141.96,141.89,2.02]
[1768502876627,37.10640718,141.94,141.86,36.35606377]
[1768502876834,37.10640718,141.94,141.87,2.02]
[1768502877133,39.12640718,141.93,141.87,8.3652]
[1768502878736,45.46910718,141.93,141.87,2.02]
[1768502879236,45.46910718,141.93,141.87,8.3654]
[1768502879833,2.02,141.93,141.87,44.72146377]
[1768502880231,37.10640718,141.94,141.87,44.72146377]
[1768502880427,37.10640718,141.93,141.87,2.02]
[1768502881028,6.3432,141.92,141.87,2.02]
[1768502881230,37.10640718,141.93,141.87,4.24314083]
[1768502882138,37.10640718,141.93,141.87,2.0]
[1768502882537,37.10640718,141.93,141.85,44.9251046]
[1768502882839,42.27258347,141.92,141.86,2.0]
[1768502883039,42.27258347,141.91,141.83,2.22314083]
[1768502883237,37.10640718,141.91,141.84,2.0]
[1768502883534,44.49617638,141.9,141.82,36.35606377]
[1768502883831,44.27303555,141.89,141.82,38.35606377]
[1768502884039,39.10640718,141.89,141.82,38.35606377]
[1768502884224,6.345,141.88,141.82,38.35606377]
[1768502886837,6.345,141.88,141.77,98.775]
[1768502886838,37.10640718,141.85,141.79,36.35606377]
[1768502887038,39.10640718,141.85,141.79,36.35606377]
[1768502887937,6.3468,141.84,141.79,36.35606377]
[1768502890837,6.3473,141.83,141.78,2.0]
[1768502891336,6.3477,141.82,141.76,36.35606377]
[1768502891543,39.10640718,141.82,141.73,36.35606377]
[1768502891842,6.3483,141.81,141.73,44.70756377]
[1768502892043,43.45470718,141.81,141.73,44.70756377]
[1768502893133,2.0,141.82,141.75,36.35606377]
[1768502894747,37.10640718,141.8,141.72,36.35606377]
[1768502894942,39.10640718,141.79,141.71,2.0]
[1768502895536,6.3504,141.76,141.7,38.35606377]
[1768502895741,2.0,141.78,141.7,41.83873015]
[1768502895940,39.10640718,141.79,141.7,41.83873015]
[1768502896341,39.10640718,141.79,141.7,38.35606377]